Cogmind - Beta 11.1 @@@ ROGUE MODE // 2022.12.10 @ 00:12:26 Player: L1l7 Result: Self-destructed Performance ------------- Evolutions (4) 2000 Regions Visited (5) 1000 Robots Destroyed (42) 210 Value Destroyed (1085) 1085 Prototype IDs (6) 120 Alien Tech Used (0) 0 Bonus (0) 0 TOTAL SCORE: 4415 Bonus ------- None Cogmind --------- Core Integrity 709/850 Matter 227/300 Energy 30/160 System Corruption 2% Temperature Danger (440) Movement Rolling (140) Ox4 Location -6/Factory Parts ------- > --- POWER (2) -------- Light Nuclear Core > --- PROPULSION (4) --- Wheel > --- UTILITY (7) ------ Medium Storage Unit Advanced Visual Processing Unit Improved Terrain Scanner Advanced ECM Suite Reactive Plating Hacking Suite > --- WEAPON (2) ------- Phase Cannon Phase Cannon > --- INVENTORY (10) --- Micro Nuclear Core Gravmag System Improved Heat Sink Medium Storage Unit Enhanced Optical Array Transmission Jammer Arc Projector Arc Projector Peak State ------------ > --- POWER ------------ Light Nuclear Core > --- PROPULSION ------- Wheel > --- UTILITY ---------- Medium Storage Unit Advanced Visual Processing Unit Improved Terrain Scanner Advanced ECM Suite Reactive Plating Hacking Suite Hacking Suite > --- WEAPON ----------- Proton Cannon Phase Cannon > --- INVENTORY -------- Gravmag System Medium Storage Unit Enhanced Optical Array Transmission Jammer Arc Projector Arc Projector [Rating: 36] Favorites ----------- Power Ion Engine Engine Ion Engine Power Core Light Nuclear Core Propulsion Wheel Wheel Wheel Hover Unit Gravmag System Utility Medium Storage Unit Device Seismic Detector Storage Medium Storage Unit Processor Advanced Visual Processing Unit Hackware Hacking Suite Protection Reactive Plating Weapon Light Cannon Energy Gun Beam Rifle Energy Cannon Plasma Cannon Ballistic Gun Assault Rifle Ballistic Cannon Light Cannon Impact Weapon Heavy Flail Build | -11 -10 -9 -8 -7 -6 ------- Run | Scr Mat Mat Mat Fac Fac Slots Evolved 8 | . . 2 2 2 2 Power 1 | . . . . 1 . Propulsion 2 | . . 1 1 . . Utility 5 | . . 1 1 1 2 Weapon . | . . . . . . Parts Attached 54 | 6 4 13 8 11 12 Power 7 | 1 . 1 2 2 1 Engine 6 | 1 . 1 2 2 . Core 1 | . . . . . 1 Reactor . | . . . . . . Propulsion 18 | 2 1 6 3 3 3 Treads . | . . . . . . Leg . | . . . . . . Wheel 17 | 2 1 6 3 3 2 Hover 1 | . . . . . 1 Flight . | . . . . . . Utility 10 | 1 1 2 1 2 3 Device 4 | . 1 1 . . 2 Storage 2 | 1 . 1 . . . Processor 1 | . . . 1 . . Hackware 2 | . . . . 2 . Protection 1 | . . . . . 1 Artifact . | . . . . . . Weapon 19 | 2 2 4 2 4 5 Energy Gun 4 | 1 . 2 . . 1 Energy Cannon 10 | . . 2 2 3 3 Ballistic Gun 1 | 1 . . . . . Ballistic Cannon 2 | . 2 . . . . Launcher . | . . . . . . Special Weapon . | . . . . . . Impact Weapon 2 | . . . . 1 1 Slashing Weapon . | . . . . . . Piercing Weapon . | . . . . . . Special Melee Weapon . | . . . . . . Unidentified Prototypes 1 | . . . 1 . . Parts Lost 19 | . . . 9 9 1 Power 3 | . . . 1 2 . Propulsion 9 | . . . 5 4 . Utility 3 | . . . 1 1 1 Weapon 4 | . . . 2 2 . Highest Loss Streak 8 | . . . 8 7 1 To Critical Strikes . | . . . . . . Average Slot Usage (%) 79 | . 100 88 87 61 67 Engine 8 | . 14 11 8 9 . Core 1 | . . . . . 6 Wheel 21 | . 28 28 31 12 6 Device 12 | . 14 16 16 6 10 Storage 9 | . 14 11 9 7 6 Processor 3 | . . . 4 7 6 Hackware 3 | . . . . 6 12 Protection 1 | . . . . . 6 Energy Gun 3 | . 3 6 . . 2 Energy Cannon 5 | . . 3 17 8 3 Ballistic Cannon 6 | . 21 12 . . . Naked Turns . | . . . . . . Heaviest Build 45 | 14 17 25 36 45 45 Greatest Support 52 | 26 26 36 44 52 10 Greatest Overweight (x) 14 | . . 1 2 14 4 Average Overweight (x) . | . . . . 1 3 Largest Inventory Capacity 10 | 8 8 10 10 10 10 Average Capacity 9 | 7 8 9 10 10 10 Most Carried 10 | 4 8 10 10 10 9 Average Carried 7 | 2 5 8 6 7 6 Final Capacity 10 | 8 8 10 10 10 10 Final Carried 10 | 4 8 8 5 10 8 Class Distribution -------------------- 58% | Mutant 27% | Hacker-Mutant 14% | Scavenger-Mutant Dominant Class ---------------- Mutant | -10/Materials Mutant | -9/Materials Mutant | -8/Materials Mutant | -7/Factory Hacker-Mutant | -6/Factory Resources | -11 -10 -9 -8 -7 -6 ----------- Run | Scr Mat Mat Mat Fac Fac Matter Collected 757 | 220 . 313 10 132 82 Remotely . | . . . . . . Salvage Created 1663 | 109 . 852 68 280 354 Parts 81 | 6 . 36 6 15 18 Haulers Intercepted 3 | . . 3 . . . Recyclers Shooed 5 | 1 . 3 . . 1 Parts Field Recycled . | . . . . . . Retrieved Matter . | . . . . . . Parts Self-Destructed . | . . . . . . Prevented . | . . . . . . Kills | -11 -10 -9 -8 -7 -6 ------- Run | Scr Mat Mat Mat Fac Fac Combat Hostiles Destroyed 18 | . . 11 1 3 3 Cannons 17 | . . 10 1 3 3 Classes Destroyed 10 | 2 . 5 . 2 1 Worker 9 | . . 2 1 3 3 Builder 2 | . . . . 1 1 Tunneler 2 | 1 . . . . 1 Hauler 3 | . . 3 . . . Recycler 5 | 1 . 2 . 1 1 Operator 1 | . . . . . 1 Watcher 2 | . . 2 . . . Grunt 12 | . . 8 1 2 1 Sentry 3 | . . 3 . . . Programmer 3 | . . . . 1 2 Best Kill Streak 4 | 2 . 4 1 3 4 Combat Bots Only 3 | . . 3 1 2 1 Max Kills in Single Turn 1 | 1 . 1 1 1 1 Gunslinging . | . . . . . . Exploded . | . . . . . . Melee . | . . . . . . Uniques/NPCs Destroyed . | . . . . . . Combat | -11 -10 -9 -8 -7 -6 -------- Run | Scr Mat Mat Mat Fac Fac Damage Taken 3113 | . . 712 992 905 504 Core 743 | . . 127 264 211 141 Absorbed by Shields . | . . . . . . Core Remaining (%) 77 | 100 100 68 52 69 . Volleys Fired 89 | 3 . 47 12 11 16 Largest 2 | 2 . 2 2 2 2 Hottest 170 | 70 . 120 160 160 170 Shots Fired 170 | 6 . 94 24 17 29 Gun 48 | 6 . 40 . . 2 Cannon 122 | . . 54 24 17 27 Launcher . | . . . . . . Special . | . . . . . . Kinetic 29 | 3 . 26 . . . Thermal 134 | 3 . 68 24 17 22 Explosive . | . . . . . . Electromagnetic 7 | . . . . . 7 Robot Hit Streak 13 | 5 . 13 3 6 6 Robot Miss Streak 4 | . . 4 3 1 2 Penetration Max . | . . . . . . Secondary Targets . | . . . . . . Shots Hit Robots 102 | 5 . 51 11 14 21 Core Hits 49 | 3 . 22 5 10 9 Critical Kills . | . . . . . . Critical Parts Destroyed 2 | . . . . . 2 Critical Strikes 4 | . . 2 . . 2 Burn 1 | . . 1 . . . Blast 1 | . . 1 . . . Smash 2 | . . . . . 2 Melee Attacks 11 | . . . . 9 2 Impact 11 | . . . . 9 2 Slashing . | . . . . . . Piercing . | . . . . . . Sneak Attacks 4 | . . . . 2 2 Combat Hostiles . | . . . . . . Follow-up Attacks . | . . . . . . Damage Inflicted 2854 | 60 . 906 353 538 997 Guns 398 | 60 . 323 . . 15 Cannons 1876 | . . 581 353 317 625 Explosions 140 | . . . . . 140 Melee 432 | . . . . 215 217 Ramming 8 | . . 2 . 6 . Kinetic 273 | 24 . 249 . . . Thermal 2030 | 36 . 655 353 317 669 Explosive . | . . . . . . Electromagnetic 111 | . . . . . 111 Impact 432 | . . . . 215 217 Slashing . | . . . . . . Piercing . | . . . . . . Highest Corruption 4 | . 1 . . 4 2 Average Corruption 1 | . 1 . . 1 1 Corruption Purged . | . . . . . . Corruption Blocked . | . . . . . . Effects 7 | . 1 . . 3 3 Message Errors 1 | . . . . 1 . Heat Flow Errors 3 | . . . . 1 2 Energy Discharges 2 | . 1 . . . 1 Data Loss (minor) 1 | . . . . 1 . Overload Shots . | . . . . . . Overflow Damage 372 | . . . . 120 252 Projectiles 45 | . . . . 10 35 Explosions . | . . . . . . Melee 327 | . . . . 110 217 Knockbacks 3 | . . 1 . 1 1 Impact 2 | . . . . 1 1 Kinetic 1 | . . 1 . . . Secondary . | . . . . . . Self-Inflicted Damage 177 | . . 1 . 2 174 Shots 3 | . . . . . 3 Rammed 4 | . . 1 . 3 . Targets Rammed 4 | . . 1 . 3 . Kicked . | . . . . . . Crushed . | . . . . . . Highest Temperature 520 | 18 . 153 439 248 520 Average Temperature 98 | 9 . 40 189 84 147 Received Heat Transfer 1098 | . . 261 459 333 45 Effects 9 | . . . 1 2 6 Shutdowns 3 | . . . 1 . 2 Energy Bleed 2 | . . . . . 2 Interference 3 | . . . . 2 1 Matter Decay 1 | . . . . . 1 Siege Activations . | . . . . . . Robots Corrupted . | . . . . . . Combat Hostiles . | . . . . . . Parts Fried 1 | . . . . . 1 Impact Corruptions 8 | . . . . 5 3 Robots Melted 1 | . . 1 . . . Combat Hostiles 1 | . . 1 . . . Parts Melted 12 | . . 5 . 4 3 Heat Transferred 3681 | 111 . 1591 687 600 692 Parts Sabotaged . | . . . . . . Parts Stolen . | . . . . . . Parts Stripped . | . . . . . . Power Chain Reactions 1 | . . . . . 1 Missiles Intercepted . | . . . . . . Alert | -11 -10 -9 -8 -7 -6 ------- Run | Scr Mat Mat Mat Fac Fac Peak Influence 362 | 10 59 362 235 139 333 Initial 152 | . 6 24 152 88 19 Average 104 | 2 31 127 183 76 92 Maximum Alert Level 1 | . . 1 1 . 1 Low Security (%) 86 | 100 100 78 74 100 86 Level 1 13 | . . 21 25 . 13 Level 2 . | . . . . . . Level 3 . | . . . . . . Level 4 . | . . . . . . Level 5 . | . . . . . . High Security . | . . . . . . Max Security . | . . . . . . Squads Dispatched 9 | . . 1 2 4 2 Investigation 3 | . . . 2 1 . Extermination 3 | . . . . 2 1 Reinforcement 3 | . . 1 . 1 1 Assault . | . . . . . . Garrison . | . . . . . . Intercept . | . . . . . . Searches Triggered . | . . . . . . Construction Impeded 1 | . . . . 1 . Haulers Reinforced . | . . . . . . Active Scanning Responses . | . . . . . . Cargo Convoy Interrupts . | . . . . . . Stealth | -11 -10 -9 -8 -7 -6 --------- Run | Scr Mat Mat Mat Fac Fac Distress Signals 3 | . . 2 . . 1 Communications Jammed . | . . . . . . Distress Signals . | . . . . . . Times Spotted 55 | . 2 19 17 9 8 Peak Tracking Total 15 | . 1 5 15 5 4 Tactical Retreats 3 | . . . 1 2 . Traps | -11 -10 -9 -8 -7 -6 ------- Run | Scr Mat Mat Mat Fac Fac Traps Triggered 3 | . 1 1 1 . . Indirectly . | . . . . . . Trap Hack Attempts . | . . . . . . Triggered . | . . . . . . Disarmed . | . . . . . . Reprogrammed . | . . . . . . Reused . | . . . . . . Traps Extracted . | . . . . . . Installed . | . . . . . . Triggered . | . . . . . . Machines | -11 -10 -9 -8 -7 -6 ---------- Run | Scr Mat Mat Mat Fac Fac Machines Disabled 16 | . . . 1 . 15 Max in Single Turn 15 | . . . 1 . 15 Garrison Access 1 | . . . . . 1 Machines Sabotaged . | . . . . . . Garrisons Compromised . | . . . . . . Overloaded Fab Kills . | . . . . . . Hacking | -11 -10 -9 -8 -7 -6 --------- Run | Scr Mat Mat Mat Fac Fac Machines Accessed 14 | . 3 4 2 2 3 Terminals 10 | . 1 4 2 2 1 Fabricators . | . . . . . . Repair Stations . | . . . . . . Recycling Units 2 | . 2 . . . . Scanalyzers 1 | . . . . . 1 Garrison Access 1 | . . . . . 1 Total Hacks 38 | . 9 10 10 4 5 Successful 22 | . 5 6 4 3 4 Failed 16 | . 4 4 6 1 1 Catastrophic 3 | . . 1 1 1 . Database Lockouts . | . . . . . . Manual . | . . . . . . Terminals 31 | . 6 10 10 4 1 Fabricators . | . . . . . . Repair Stations . | . . . . . . Recycling Units 3 | . 3 . . . . Scanalyzers 2 | . . . . . 2 Garrison Access 2 | . . . . . 2 Terminal Hacks 16 | . 2 6 4 3 1 Part Schematic 1 | . . . . 1 . Prototype ID Bank 2 | . . 1 . 1 . Open DSF 1 | . . . . . 1 Level Access Points 1 | . . . . 1 . Emergency Access Points 2 | . . 2 . . . Repair Station Index 1 | . 1 . . . . Alert Level 2 | . 1 . 1 . . Security Status 1 | . . 1 . . . Surveillance Status 1 | . . . 1 . . Transport Status 1 | . . 1 . . . Registered Components 2 | . . 1 1 . . Zone Layout 1 | . . . 1 . . Fabricator Hacks . | . . . . . . Repair Station Hacks . | . . . . . . Recycling Unit Hacks 3 | . 3 . . . . Process 1 | . 1 . . . . Report Inventory 1 | . 1 . . . . Retrieve Components 1 | . 1 . . . . Scanalyzer 2 | . . . . . 2 Insert Component 1 | . . . . . 1 Analyze 1 | . . . . . 1 Garrison Access Hacks 1 | . . . . . 1 Seal Access 1 | . . . . . 1 Unauthorized Hacks . | . . . . . . Terminals . | . . . . . . Fabricators . | . . . . . . Repair Stations . | . . . . . . Recycling Units . | . . . . . . Scanalyzers . | . . . . . . Garrison Access . | . . . . . . Data Cores Recovered . | . . . . . . Used . | . . . . . . Hacking Detections 9 | . 1 4 1 2 1 Full Trace Events 2 | . . . 1 1 . Feedback Events 1 | . . . . 1 . Corruption 1 | . . . . 1 . Feedback Blocked . | . . . . . . Robot Schematics Acquired . | . . . . . . Robots Built . | . . . . . . Authchips . | . . . . . . Time . | . . . . . . Total Robot Build Rating . | . . . . . . Part Schematics Acquired 2 | . . . . 1 1 Parts Built . | . . . . . . Authchips . | . . . . . . Time . | . . . . . . Total Part Build Rating . | . . . . . . Parts Repaired . | . . . . . . Time . | . . . . . . Parts Recycled . | . . . . . . Recycled Matter . | . . . . . . Retrieved Matter . | . . . . . . Retrieved Components 3 | . 3 . . . . Parts Scanalyzed 1 | . . . . . 1 Part Schematics Acquired 1 | . . . . . 1 Parts Damaged . | . . . . . . Bothacking | -11 -10 -9 -8 -7 -6 ------------ Run | Scr Mat Mat Mat Fac Fac Used RIF Installer . | . . . . . . Robots Hacked . | . . . . . . Non-combat . | . . . . . . Combat . | . . . . . . Robot Hacks Applied . | . . . . . . Relay Couplers Released 1 | . . . . . 1 Machine Destruction 1 | . . . . . 1 Fabnet Peak Effective % . | . . . . . . Robots Rewired . | . . . . . . Allies Hacked . | . . . . . . Hacks Repelled . | . . . . . . Allies | -11 -10 -9 -8 -7 -6 -------- Run | Scr Mat Mat Mat Fac Fac Total Allies . | . . . . . . Largest Group . | . . . . . . Highest-Rated Group . | . . . . . . Highest-Rated Ally . | . . . . . . Total Orders . | . . . . . . Ally Attacks . | . . . . . . Total Damage . | . . . . . . Kills . | . . . . . . Allies Corrupted . | . . . . . . Allies Melted . | . . . . . . Intel | -11 -10 -9 -8 -7 -6 ------- Run | Scr Mat Mat Mat Fac Fac Robot Analysis Total . | . . . . . . Derelict Logs Recovered . | . . . . . . Drone Launches . | . . . . . . Drone Recoveries . | . . . . . . Exploration | -11 -10 -9 -8 -7 -6 ------------- Run | Scr Mat Mat Mat Fac Fac Turns Passed 2757 | 83 200 1104 267 625 478 Spaces Moved 1920 | 70 222 715 222 409 282 Core 23 | 18 . . . 5 . Treads . | . . . . . . Legs . | . . . . . . Wheels 1897 | 52 222 715 222 404 282 Hover . | . . . . . . Flight . | . . . . . . Fastest Speed 50 | 50 80 80 85 90 125 Average Speed 96 | 79 82 84 88 109 127 Slowest Speed 750 | 90 90 95 110 750 140 Overloaded Moves . | . . . . . . Propulsion Burnouts . | . . . . . . Robots Hopped . | . . . . . . Cave-ins Triggered . | . . . . . . Exploration Rate (%) 19 | 4 33 36 29 9 8 Regions Visited 5 Branch Regions . Pre-discovered Areas . | . . . . . . Known Exits Taken 1 | . . . . 1 . Unknown Exits Taken 4 | 1 1 1 1 . . Scrap Searched . | . . . . . . Spaces Dug 8 | . . . 3 5 . Terrain Destroyed 57 | . . . 6 5 46 Melee 5 | . . . . 5 . Projectile 12 | . . . 6 . 6 AOE 40 | . . . . . 40 Terrain Rammed . | . . . . . . Walls Destroyed . | . . . . . . Machines Disabled . | . . . . . . Actions | -11 -10 -9 -8 -7 -6 --------- Run | Scr Mat Mat Mat Fac Fac Total 2658 | 92 240 1135 274 545 372 Wait 454 | . . 320 8 84 42 Move 1915 | 69 221 714 221 408 282 Hop . | . . . . . . Pick Up 83 | 12 10 21 13 16 11 Fast Attach . | . . . . . . Attach 53 | 6 4 13 8 10 12 Detach 2 | . . . . 1 1 Swap 1 | . . . . 1 . Drop 46 | 2 5 19 12 2 6 Fire 89 | 3 . 47 12 11 16 Melee 11 | . . . . 9 2 Ram 4 | . . 1 . 3 . Kick . | . . . . . . Crush . | . . . . . . Escape Stasis . | . . . . . . Rewire . | . . . . . . Trap . | . . . . . . Miscellaneous . | . . . . . . Route ------- -11/Scrapyard -10/Materials -9/Materials -8/Materials -7/Factory (discovered 4 exits: *Fac x4) -6/Factory History --------- Turn | Location | Event 2 | -11/Scrapyard | Met Revision 17 12 | -11/Scrapyard | Discovered new exit (range 16) 84 | -11/Scrapyard | Entered Materials 268 | -10/Materials | Discovered new exit (range 8) 284 | -10/Materials | Entered another Materials area 284 | -9/Materials | Evolved 2 slots: Propulsion x1, Utility x1 304 | -9/Materials | Build established: Mutant 1179 | -9/Materials | Build established: Scavenger-Mutant 1375 | -9/Materials | Discovered new exit (range 15) 1388 | -9/Materials | Entered another Materials area 1388 | -8/Materials | Evolved 2 slots: Propulsion x1, Utility x1 1635 | -8/Materials | Discovered new exit (range 19) 1655 | -8/Materials | Entered Factory 1655 | -7/Factory | Evolved 2 slots: Power x1, Utility x1 1678 | -7/Factory | Lost 8 parts (1p4n1u2w) 1713 | -7/Factory | Build established: Mutant 2089 | -7/Factory | Identified exit to Factory 2280 | -7/Factory | Entered another Factory area 2280 | -6/Factory | Evolved 2 slots: Utility x2 2290 | -6/Factory | Identified exit to DSF 2305 | -6/Factory | Build established: Hacker-Mutant 2308 | -6/Factory | Lost 7 parts (2p2n1u2w) 2758 | -6/Factory | Self-destructed Last Messages --------------- G-50 Soldier destroyed. Power failure, Lgt. Nuclear Core shutdown. P-70 Sage resets K-01 Serf, system corruption cleaned. Overheating: Energy bleed (-10). K-01 Serf collects debris. R-10 Processor collects Hvy. Laser. Destroyed Wheel. K-01 Serf destroyed. K-01 Serf collects debris. K-01 Serf cleans the Manufacturing Mainframe. Overheating: System interference. Phase Cannon temporarily disabled. U-05 Engineer builds a Wall. Acquired 17 matter. Power failure, Lgt. Nuclear Core shutdown. Overheating: Energy bleed (-7). R-10 Processor collects Lgt. Angular Momentum Engine. K-01 Serf cleans the Manufacturing Mainframe. Overheating: Matter decay (-40). K-01 Serf collects debris. Map ----- +----------------------------------------------------+ | ?????????????????????????????????????????????????? | | ?????????????????????????????????????????????????? | | ?????????????????????????????????????????????????? | | ?????????????????????????????????????????????????? | | ?????????????????????????????????????????????????? | | ?????????????????????????????????????????????????? | | ?????????????????????????????????????????????????? | | ?????????????????????????????????????????????????? | | ?????????????????????????????????????????????????? | | ?????????????????????????????????????????????????? | | ???? ??????????????????????????????????????????? | | ?? ??????????????????????????????????????????? | | ## ??????????????????????????????????????????? | | ??????????????###????????????????????????? | | ?????????????? ? ?????????????????????? | | "" ?????????????? ? ?? #??????????????????? | | #????????????""" "??? ##?????????????????? | | ##????????# """" """? #??#???????????????? | | ##????????# """" """" #??????????????????? | | ########??#k"""" """" #??#???????????????? | | #??# k A #?#????????????????? | | #??# """"k"""" #??????????????????? | | ##?# """" """" #??? ??? ??????????? | | ##?# """" """" ###???T????????????? | | #??# """" """" #??????????????????? | | #??# @ #??????????????????? | | ##########w#;#;#########???????????? | | u% %!k= ^ ??? | | *=k%! ??? | | ^ ??? | | ^ ???? | | R ???? | | ###""######+######;#####+######## T######### ????? | | "#### ! #???????? ?????##?????????????? | | " ##?## #?????????????????????????????? | | " #???# #?????????????????????????????? | | " ##??# """" """" #???? ?? ?????????????????????? | | #???# """" """" #?? ?????????????????????????? | | #???# """" """" #??? ?????????????????????????? | | #?#?# """" """" #?????"???????????????????????? | | #???# """" """" #?????????????????????????????? | | ##??# """" """" #?????????????????????????????? | | ###??????""" """" #?????????????????????????????? | | #????????? #?????????????????????????????? | | ?#???????? #?????????????????????????????? | | ??#???????##########?????????????????????????????? | | ???????#?????????????????????????????????????????? | | ?????????????????????????????????????????????????? | | ?????????????????????????????????????????????????? | | ?????#???????????????????????????????????????????? | +----------------------------------------------------+ Best States ------------- Heat Dissipation 44 Energy Generation 27 Energy Capacity 480 Matter Stores 300 Matter Capacity 300 Sight Range 20 Terrain Scan Range 16 Terrain Scan Density 10 Armor Coverage 150 Resistance: KI 20 Evasion (%) 50 Offensive Hacking 20 Item Schematics ----------------- Kinecellerator | -7/Factory | Hacked Gravmag System | -6/Factory | Scanalyzed Robot Schematics ------------------ None Fabricated ------------ Nothing Alien Tech Used ----------------- None Achievements -------------- It Was An Accident, I Swear Challenges ------------ None Game ------ Seed AssaultSystemNetwork Manual? 0 Play Time 00:29:56 Cumulative 27.7 hours Start 2022.12.09 @ 23:41:53 End 2022.12.10 @ 00:12:26 Sessions 1 Manual Loads 0 Difficulty Rogue Special Mode None Game No. 43 Rogue 43 Adventurer 0 Explorer 0 Win Type - Total 0 Types 0/0/0/0/0/0/0/0/0 Lore% 23 Gallery% 29 Achievement% 25 Wizard Run 0 Options --------- ASCII 0 Keyboard 0 Movement Arrows Keybinds 0 Fullscreen 2 Font 16/SmallcapsGlow Map View 76x50 Tactical HUD 0 Map Filters NONE Filters NONE Steam 1 RUN: e1aec5a2-b2cf-48a1-b0a5-d133c54d43f5